bitfinex/quotes_SOLUSD_20220218
["timestamp","ask_amount","ask_price","bid_price","bid_amount"]
[1645202821000,11.66918172,91.449,91.372,51.94526831]
[1645202821403,6.20018172,91.448,91.372,51.94526831]
[1645202821603,5.469,91.447,91.372,51.94526831]
[1645202822001,6.20018172,91.446,91.373,109.4]
[1645202822199,6.20018172,91.446,91.372,51.94526831]
[1645202822200,6.20018172,91.446,91.381,109.4]
[1645202822400,6.20018172,91.456,91.382,0.25]
[1645202822600,16.4171,91.46,91.382,0.25]
[1645202822601,6.20018172,91.457,91.382,0.25]
[1645202823003,6.20018172,91.457,91.383,5.469]
[1645202823304,6.20018172,91.466,91.391,109.4]
[1645202823501,6.20018172,91.466,91.392,0.25]
[1645202823701,6.20018172,91.466,91.391,109.4]
[1645202823901,0.25,91.465,91.391,109.4]
[1645202824103,58.85562198,91.465,91.392,47.43831266]
[1645202824301,6.20018172,91.464,91.392,47.43831266]
[1645202824501,16.9536006,91.464,91.393,109.4]
[1645202824704,6.20018172,91.463,91.401,109.4]
[1645202824903,10.75341888,91.463,91.402,0.25]
[1645202825103,10.75341888,91.463,91.403,5.468]
[1645202825307,5.468,91.496,91.404,0.25]
[1645202825520,4.63633688,91.503,91.405,5.466]
[1645202825720,61.7996,91.483,91.407,109.4]
[1645202825922,61.7996,91.483,91.406,53.89022678]
[1645202825923,6.2012549,91.482,91.406,53.64022678]
[1645202826120,5.466,91.481,91.406,53.64022678]
[1645202826321,6.2012549,91.48,91.406,53.64022678]
[1645202826522,5.466,91.479,91.406,53.64022678]
[1645202826720,42.78552913,91.469,91.406,53.64022678]
[1645202826922,6.2012549,91.468,91.407,109.4]
[1645202827124,6.2012549,91.468,91.406,53.64022678]
[1645202828125,6.2012549,91.468,91.381,114.868]
[1645202828321,0.25,91.467,91.4,16.4117]
[1645202828524,6.2012549,91.466,91.401,0.25]
[1645202829022,10.38735542,91.465,91.4,16.4117]
[1645202829224,11.6692549,91.464,91.401,43.17372152]
[1645202829623,6.2012549,91.463,91.401,43.17372152]
[1645202829824,5.468,91.462,91.401,43.17372152]
[1645202830028,5.468,91.462,91.38,22.638]
[1645202830029,6.2012549,91.461,91.38,22.638]
[1645202830227,5.469,91.46,91.38,22.638]
[1645202830423,6.2012549,91.459,91.381,109.65]
[1645202830628,5.469,91.458,91.381,109.65]
[1645202831029,16.58861032,91.457,91.382,48.65270744]
[1645202831225,47.21412261,91.455,91.382,48.65270744]
[1645202831426,16.4189,91.45,91.382,48.65270744]
[1645202831824,22.06015423,91.449,91.382,48.65270744]
[1645202832026,6.45379881,91.448,91.382,48.65270744]
[1645202832233,11.67279881,91.447,91.351,109.4]
[1645202832430,16.4208,91.44,91.352,23.5022]
[1645202832728,11.67379881,91.439,91.352,23.5022]
[1645202832926,6.20379881,91.438,91.352,23.5022]
[1645202833127,5.47,91.437,91.33,5.47]
[1645202833327,16.424,91.43,91.353,45.16007359]
[1645202833629,11.67379881,91.429,91.353,45.16007359]
[1645202833825,6.20379881,91.428,91.353,45.16007359]
[1645202834025,5.471,91.427,91.353,45.16007359]
[1645202834226,15.85835542,91.427,91.353,45.16007359]
[1645202834425,8.83318191,91.426,91.353,45.16007359]
[1645202834626,5.471,91.425,91.353,45.16007359]
[1645202834825,15.85835542,91.425,91.353,45.16007359]
[1645202835025,16.4257,91.42,91.353,45.16007359]
[1645202835228,58.10704289,91.419,91.353,45.16007359]
[1645202835428,52.63604289,91.419,91.354,109.4]
[1645202835625,52.63604289,91.419,91.355,0.25]
[1645202835831,3.08601055,91.447,91.356,5.471]
[1645202836027,8.55601055,91.459,91.357,0.25]
[1645202836228,19.50331055,91.46,91.358,5.469]
[1645202836425,10.37867882,91.458,91.38,16.4173]
[1645202836626,6.20358191,91.457,91.381,0.25]
[1645202836826,50.85132967,91.456,91.381,48.5499227]
[1645202837026,6.20358191,91.455,91.381,48.5499227]
[1645202837428,10.37867882,91.454,91.381,157.9499227]
[1645202837830,50.85132967,91.456,91.381,157.9499227]
[1645202838429,16.4191,91.45,91.381,48.5499227]
[1645202839230,50.85132967,91.456,91.381,48.5499227]
[1645202839432,6.2032124,91.455,91.381,48.5499227]
[1645202839832,10.38455747,91.454,91.381,48.5499227]
[1645202840734,0.25,91.453,91.381,48.5499227]
[1645202840934,0.25,91.454,91.381,157.9499227]
[1645202841348,0.25,91.455,91.381,157.9499227]
[1645202841837,10.38404021,91.454,91.381,157.9499227]
[1645202842241,0.25,91.455,91.391,109.4]
[1645202842437,54.7167,91.5,91.391,109.4]
[1645202842438,3.08601055,91.466,91.392,0.25]
[1645202842637,6.20164259,91.478,91.393,5.468]
[1645202842836,6.20164259,91.478,91.394,0.25]
[1645202843036,6.20164259,91.487,91.395,5.468]
[1645202843237,3.08601055,91.491,91.396,0.25]
[1645202843444,2.6293831,91.5,91.401,109.4]
[1645202843445,10.37987336,91.486,91.401,109.4]
[1645202843639,6.20164259,91.485,91.402,0.25]
[1645202843841,10.37987336,91.489,91.402,0.25]
[1645202844038,6.20097248,91.488,91.403,114.866]
[1645202844238,6.20097248,91.488,91.405,109.4]
[1645202844437,0.25,91.487,91.407,109.4]
[1645202844637,0.25,91.487,91.411,109.4]
[1645202844837,0.25,91.487,91.413,109.4]
[1645202845038,45.9367515,91.49,91.415,109.4]
[1645202845237,0.25,91.489,91.416,0.25]
[1645202845439,0.25,91.489,91.421,109.4]
[1645202845638,0.25,91.489,91.422,0.25]
[1645202846140,10.37909557,91.488,91.422,0.25]
[1645202846340,10.37909557,91.488,91.422,6.25]
[1645202846739,10.37909557,91.488,91.43,16.4088]
[1645202847343,6.20110359,91.487,91.431,109.65]
[1645202847542,45.9367515,91.49,91.431,109.65]
[1645202847941,0.25,91.489,91.431,109.65]
[1645202848143,10.62944285,91.489,91.431,109.65]
[1645202848342,10.62944285,91.489,91.441,109.4]
[1645202848542,0.25,91.489,91.442,51.16331621]
[1645202849744,26.58161055,91.508,91.451,109.4]
[1645202849945,23.4956,91.508,91.451,109.4]
[1645202850245,10.28598462,91.507,91.451,109.4]
[1645202850845,42.75433854,91.506,91.452,0.25]
[1645202851045,42.75433854,91.506,91.46,16.4039]
[1645202851244,42.75433854,91.506,91.461,0.25]
[1645202851450,45.38372164,91.506,91.442,51.16331621]
[1645202851647,10.28301001,91.505,91.442,51.16331621]
[1645202852047,0.25,91.504,91.442,51.16331621]
[1645202852445,0.25,91.504,91.443,109.65]
[1645202852645,3.08601055,91.521,91.443,109.65]
[1645202852845,10.28077349,91.52,91.444,5.465]
[1645202853048,10.28077349,91.52,91.445,0.25]
[1645202853246,6.19972842,91.519,91.445,0.25]
[1645202853646,40.44002338,91.518,91.445,0.25]
[1645202853847,0.25,91.517,91.445,0.25]
[1645202854049,0.25,91.517,91.444,0.25]
[1645202854347,10.28077349,91.516,91.45,16.4059]
[1645202854546,10.28077349,91.516,91.451,109.65]
[1645202854951,0.25,91.517,91.452,5.465]
[1645202855151,40.44002338,91.518,91.453,0.25]
[1645202855954,40.44002338,91.518,91.46,16.4032]
[1645202856149,10.27320981,91.517,91.445,109.4]
[1645202856349,0.25,91.516,91.446,0.25]
[1645202857356,40.44002338,91.518,91.45,16.4058]
[1645202857550,40.44002338,91.518,91.451,0.25]
[1645202857749,40.44002338,91.518,91.444,0.25]
[1645202858351,0.25,91.517,91.444,0.25]
[1645202858552,24.5747,91.526,91.461,109.4]
[1645202858753,24.6869,91.54,91.462,0.25]
[1645202859275,24.6869,91.54,91.463,109.4]
[1645202859474,52.24930793,91.539,91.481,109.4]
[1645202859676,52.24930793,91.539,91.483,109.4]
[1645202859677,10.26286854,91.539,91.483,109.4]
[1645202859873,10.26286854,91.539,91.482,6.25]
[1645202859874,19.48351055,91.57,91.485,109.4]
[1645202860074,6.19705226,91.569,91.487,109.4]
[1645202860277,10.25984357,91.569,91.489,109.4]
[1645202860474,10.25984357,91.569,91.5,16.3925]
[1645202860674,49.41832204,91.568,91.501,109.65]
[1645202860876,0.25,91.567,91.501,109.65]
[1645202861074,10.50984357,91.567,91.501,109.65]
[1645202861274,10.25984357,91.567,91.501,109.65]
[1645202861475,10.25984357,91.566,91.501,109.65]
[1645202861679,10.25984357,91.566,91.501,0.25]
[1645202861877,10.25984357,91.567,91.495,109.4]
[1645202862076,10.25984357,91.567,91.497,109.4]
[1645202862276,10.25984357,91.567,91.499,109.4]
[1645202862477,10.25984357,91.567,91.51,16.3929]
[1645202862677,0.25,91.566,91.51,16.3929]
[1645202863277,49.41832204,91.568,91.51,16.3929]
[1645202863476,10.4928123,91.567,91.51,16.3929]
[1645202864079,10.2428123,91.566,91.51,16.3929]
[1645202864480,0.25,91.565,91.511,109.4]
[1645202864678,0.25,91.565,91.521,41.58957122]
[1645202864878,0.25,91.565,91.522,0.25]
[1645202865080,49.41832204,91.568,91.522,0.25]
[1645202865478,1.53578496,91.564,91.522,0.25]
[1645202865679,1.53578496,91.567,91.522,0.25]
[1645202865879,1.53578496,91.567,91.52,16.3931]
[1645202866081,6.19561085,91.588,91.501,109.4]
[1645202866082,1.53578496,91.561,91.501,109.4]
[1645202866282,1.53578496,91.561,91.502,0.25]
[1645202866480,1.53578496,91.56,91.502,6.25]
[1645202866681,1.53578496,91.558,91.502,6.0]
[1645202866987,0.25,91.559,91.503,51.13768204]
[1645202866988,1.53578496,91.554,91.503,51.13768204]
[1645202867182,1.53578496,91.554,91.481,23.5712]
[1645202867381,1.53578496,91.554,91.482,0.25]
[1645202867580,1.53578496,91.549,91.482,0.25]
[1645202867782,1.53578496,91.548,91.482,0.25]
[1645202867982,1.53578496,91.548,91.481,23.5712]
[1645202868184,1.53578496,91.547,91.482,41.93981938]
[1645202868382,1.53578496,91.545,91.482,41.93981938]
[1645202868584,1.53578496,91.543,91.482,41.93981938]
[1645202868784,49.07241376,91.542,91.482,41.93981938]
[1645202868983,49.07241376,91.542,91.512,0.81629409]
[1645202869185,1.53578496,91.539,91.512,0.81629409]
[1645202869390,3.08601055,91.564,91.512,0.81629409]
[1645202869391,8.78764753,91.643,91.516,175.67]
[1645202869591,6.19294668,91.642,91.544,175.67]
[1645202869785,6.19294668,91.689,91.561,5.0]
[1645202870086,16.3273,91.742,91.581,5.0]
[1645202870285,16.3273,91.742,91.59,12.82]
[1645202870286,109.4,91.74,91.59,12.82]
[1645202870486,109.4,91.74,91.582,23.4681]
[1645202870487,42.31619487,91.711,91.582,23.4681]
[1645202870685,52.71564668,91.71,91.583,6.0]
[1645202870887,6.19294668,91.709,91.584,5.705]
[1645202871086,6.19294668,91.709,91.585,6.0]
[1645202871288,6.19294668,91.709,91.587,109.4]
[1645202871486,46.5227,91.71,91.591,109.4]
[1645202871685,42.31619487,91.711,91.593,109.4]
[1645202871884,42.31619487,91.711,91.602,109.4]
[1645202872084,42.31619487,91.711,91.603,11.705]
[1645202872288,2.6293831,91.71,91.603,6.25]
[1645202872485,2.6293831,91.71,91.604,5.455]
[1645202872685,2.6293831,91.71,91.605,6.25]
[1645202872885,2.6293831,91.71,91.606,5.455]
[1645202873087,2.6293831,91.71,91.608,109.4]
[1645202873287,2.6293831,91.71,91.61,109.4]
[1645202873585,42.31619487,91.711,91.612,109.4]
[1645202873786,42.31619487,91.711,91.616,109.4]
[1645202874085,42.31619487,91.711,91.621,109.4]
[1645202874284,42.31619487,91.711,91.623,109.4]
[1645202874485,42.31619487,91.711,91.63,16.3678]
[1645202874685,42.31619487,91.711,91.632,41.1169092]
[1645202874888,42.31619487,91.711,91.633,11.704]
[1645202875284,42.31619487,91.711,91.634,109.4]
[1645202875486,42.31619487,91.711,91.636,109.4]
[1645202875686,42.31619487,91.711,91.641,109.4]
[1645202875885,42.31619487,91.711,91.642,11.703]
[1645202876084,42.31619487,91.711,91.642,0.25]
[1645202876485,42.31619487,91.711,91.63,16.3678]
[1645202876687,44.94557797,91.711,91.631,0.25]
[1645202876887,0.25,91.71,91.631,0.25]
[1645202877290,2.6293831,91.709,91.631,0.25]
[1645202877689,0.25,91.71,91.632,5.454]
[1645202877887,0.25,91.71,91.633,0.25]
[1645202878087,0.25,91.71,91.634,5.454]
[1645202878288,2.6293831,91.709,91.63,16.3678]
[1645202878488,2.6293831,91.709,91.611,5.454]
[1645202878689,2.6293831,91.709,91.61,16.376]
[1645202878891,2.6293831,91.709,91.611,5.454]
[1645202879092,0.25,91.71,91.611,5.454]
[1645202879293,42.31619487,91.711,91.613,109.4]
[1645202879495,42.31619487,91.711,91.615,109.4]
[1645202879692,42.31619487,91.711,91.616,115.4]
[1645202879894,42.31619487,91.711,91.617,5.704]
[1645202880096,42.31619487,91.711,91.618,115.4]
[1645202880392,42.31619487,91.711,91.62,109.4]
[1645202880594,42.31619487,91.711,91.622,109.4]
[1645202880792,42.31619487,91.711,91.631,109.4]
[1645202880993,42.31619487,91.711,91.633,109.4]
[1645202881198,2.6293831,91.71,91.634,0.25]
[1645202881395,0.25,91.709,91.63,16.3694]
[1645202881793,2.6293831,91.708,91.63,16.3694]
[1645202885495,0.38,91.703,91.58,54.5925]
[1645202885696,114.6,91.672,91.548,5.456]
[1645202885897,12.82,91.7,91.548,5.456]
[1645202886098,12.82,91.7,91.551,47.0148355]
[1645202886295,16.9036947,91.699,91.552,114.856]
[1645202886496,19.5330778,91.699,91.552,114.856]
[1645202886696,2.6293831,91.698,91.554,109.4]
[1645202886895,109.4,91.696,91.556,109.4]
[1645202887095,109.4,91.696,91.558,109.4]
[1645202887296,109.4,91.694,91.56,109.4]
[1645202887496,109.4,91.694,91.562,109.4]
[1645202887697,2.8793831,91.693,91.564,109.4]
[1645202887899,2.8793831,91.693,91.567,4.66413593]
[1645202888095,2.6293831,91.692,91.571,109.4]
[1645202888295,2.6293831,91.692,91.573,109.4]
[1645202888498,2.6293831,91.692,91.575,109.4]
[1645202888697,2.6293831,91.692,91.577,109.4]
[1645202888895,2.6293831,91.692,91.579,109.4]
[1645202889097,2.6293831,91.692,91.58,0.25]
[1645202889298,2.6293831,91.692,91.581,160.45848237]
[1645202889497,2.6293831,91.692,91.582,0.25]
[1645202889698,2.6293831,91.692,91.582,6.25]
[1645202889898,2.6293831,91.692,91.582,0.25]
[1645202890400,16.3822,91.69,91.582,0.25]
[1645202890599,109.4,91.689,91.574,5.706]
[1645202890799,112.0293831,91.689,91.574,0.25]
[1645202891000,109.4,91.687,91.572,0.25]
[1645202891199,5.38,91.683,91.573,5.456]
[1645202891400,5.38,91.663,91.55,16.3866]
[1645202891601,109.4,91.649,91.53,5.457]
[1645202891804,109.4,91.649,91.511,5.458]
[1645202892001,12.82,91.67,91.511,5.458]
[1645202892002,109.4,91.647,91.511,5.458]
[1645202892201,0.25,91.646,91.512,45.70454694]
[1645202892402,0.25,91.646,91.513,114.858]
[1645202892600,2.8793831,91.646,91.513,114.858]
[1645202892801,2.6293831,91.645,91.514,6.0]
[1645202893024,109.4,91.629,91.52,16.3925]
[1645202893223,109.4,91.629,91.521,5.71]
[1645202893425,2.6293831,91.628,91.521,5.71]
[1645202894125,48.18397428,91.627,91.522,50.40555564]
[1645202894323,48.18397428,91.627,91.523,5.71]
[1645202894525,2.6293831,91.626,91.523,5.71]
[1645202895428,2.6293831,91.626,91.523,0.25]
[1645202895727,2.6293831,91.626,91.522,0.25]
[1645202895925,0.25,91.625,91.523,5.46]
[1645202896328,2.6293831,91.624,91.52,16.3925]
[1645202897026,109.4,91.619,91.52,16.3925]
[1645202897526,2.6293831,91.618,91.52,16.3925]
[1645202899027,16.3958,91.61,91.52,16.3925]
[1645202899227,2.6293831,91.618,91.5,54.6416]
[1645202899228,109.4,91.609,91.5,16.3964]
[1645202899430,112.0293831,91.609,91.5,16.3964]
[1645202899729,49.3545,91.617,91.525,1.07449852]
[1645202899730,2.6293831,91.608,91.525,1.07449852]
[1645202899931,50.07531623,91.607,91.525,1.07449852]
[1645202900329,2.6293831,91.606,91.526,0.25]
[1645202900733,2.6293831,91.606,91.525,1.07449852]
[1645202901331,112.0293831,91.606,91.525,1.07449852]
[1645202901731,2.6293831,91.605,91.525,1.07449852]
[1645202903433,0.25,91.604,91.525,1.07449852]
[1645202904132,0.25,91.604,91.526,0.25]
[1645202904334,50.07531623,91.607,91.527,5.46]
[1645202904534,50.07531623,91.607,91.529,109.4]
[1645202904732,50.07531623,91.607,91.531,109.4]
[1645202904932,50.07531623,91.607,91.532,0.25]
[1645202905937,50.07531623,91.607,91.521,5.46]
[1645202905938,2.6293831,91.606,91.521,5.46]
[1645202906133,2.6293831,91.606,91.49,12.82]
[1645202906134,112.0293831,91.606,91.49,12.82]
[1645202906335,112.0293831,91.606,91.473,5.46]
[1645202906336,2.75201326,91.606,91.473,5.46]
[1645202906632,2.6293831,91.605,91.473,5.46]
[1645202907033,0.38,91.603,91.49,16.3987]
[1645202907234,109.4,91.603,91.49,16.3987]
[1645202907434,2.6293831,91.602,91.49,16.3987]
[1645202908234,0.38,91.593,91.49,16.3987]
[1645202908436,109.4,91.589,91.49,16.3987]
[1645202908635,109.4,91.587,91.49,16.3987]
[1645202909236,2.6293831,91.586,91.49,16.3987]
[1645202910038,16.3999,91.58,91.49,16.3987]
[1645202910440,2.6293831,91.579,91.49,16.3987]
[1645202911043,2.6293831,91.579,91.5,16.3984]
[1645202911241,0.25,91.578,91.5,16.3984]
[1645202911640,2.6293831,91.577,91.5,16.3984]
[1645202912642,2.6293831,91.577,91.473,22.7254]
[1645202912643,109.4,91.569,91.46,54.67]
[1645202912841,109.4,91.569,91.441,5.463]
[1645202913041,2.6293831,91.568,91.441,5.463]
[1645202913443,109.4,91.566,91.441,5.463]
[1645202913941,109.4,91.559,91.47,16.4025]
[1645202914345,2.6293831,91.558,91.44,54.6812]
[1645202914541,5.38,91.553,91.44,54.6812]
[1645202914741,5.38,91.553,91.424,109.4]
[1645202914943,109.4,91.529,91.424,109.4]
[1645202915141,5.0,91.543,91.424,109.4]
[1645202915343,52.58120066,91.527,91.426,109.4]
[1645202915743,2.6293831,91.526,91.426,109.4]
[1645202916343,16.4104,91.52,91.43,125.8102]
[1645202916743,2.6293831,91.519,91.43,125.8102]
[1645202917546,52.58120066,91.527,91.43,125.8102]
[1645202917746,52.58120066,91.527,91.45,16.4072]
[1645202917949,52.58120066,91.527,91.451,6.0]
[1645202918347,2.6293831,91.526,91.432,109.4]
[1645202918547,16.4092,91.52,91.433,0.25]
[1645202919358,16.4092,91.52,91.44,16.4083]
[1645202919549,0.25,91.519,91.44,16.4083]
[1645202921549,0.20723414,91.519,91.44,16.4083]
[1645202922050,68.90330066,91.527,91.44,16.4083]
[1645202922051,109.4,91.509,91.44,16.4083]
[1645202922250,109.4,91.509,91.42,16.412]
[1645202922451,2.6293831,91.508,91.42,16.412]
[1645202923051,0.38,91.493,91.407,5.466]
[1645202923255,5.38,91.493,91.338,5.466]
[1645202923453,5.38,91.493,91.339,6.0]
[1645202923454,74.9369831,91.492,91.339,6.0]
[1645202923653,74.9369831,91.492,91.34,18.289]
[1645202923858,5.38,91.483,91.34,18.289]
[1645202924062,109.4,91.481,91.341,147.34552519]
[1645202924256,16.4191,91.47,91.38,16.4201]
[1645202924657,109.4,91.469,91.369,13.73344624]
[1645202924956,109.4,91.467,91.369,13.73344624]
[1645202925157,41.06358848,91.468,91.369,13.73344624]
[1645202925456,24.1974,91.478,91.369,13.73344624]
[1645202925457,44.03531918,91.45,91.37,112.0293831]
[1645202925756,2.6293831,91.497,91.372,109.4]
[1645202925958,2.6293831,91.497,91.374,109.4]
[1645202926157,16.6334,91.502,91.376,109.4]
[1645202926364,109.4,91.501,91.378,109.4]
[1645202926561,109.4,91.499,91.39,16.4178]
[1645202926781,109.4,91.499,91.38,54.7184]
[1645202926782,48.14105195,91.491,91.391,38.19552519]
[1645202927385,48.14105195,91.491,91.392,2.6293831]
[1645202927584,48.14105195,91.491,91.394,109.4]
[1645202927787,48.14105195,91.491,91.395,0.25]
[1645202927983,48.14105195,91.491,91.391,37.94552519]
[1645202928185,0.25,91.49,91.392,0.25]
[1645202928386,16.6637,91.49,91.41,16.4145]
[1645202929189,2.6293831,91.489,91.41,16.4145]
[1645202930287,16.4152,91.48,91.41,16.4145]
[1645202930489,16.4152,91.48,91.382,0.96408546]
[1645202930690,2.6293831,91.479,91.382,0.96408546]
[1645202931691,109.4,91.469,91.382,0.96408546]
[1645202931990,2.6293831,91.468,91.382,0.96408546]
[1645202932589,109.4,91.466,91.382,0.96408546]
[1645202932988,2.8793831,91.465,91.382,0.96408546]
[1645202933489,43.8987746,91.449,91.382,0.96408546]
[1645202933688,43.8987746,91.449,91.355,114.869]
[1645202933689,43.8987746,91.449,91.367,0.95946739]
[1645202934491,43.8987746,91.449,91.39,16.4188]
[1645202935394,16.4214,91.44,91.367,0.95946739]
[1645202936195,2.6293831,91.439,91.37,16.421]
[1645202936393,16.4236,91.43,91.37,16.421]
[1645202936593,51.15936949,91.429,91.367,0.95946739]
[1645202936799,109.4,91.428,91.367,0.95946739]
[1645202936994,109.4,91.426,91.367,0.95946739]
[1645202937392,2.6293831,91.425,91.367,0.95946739]
[1645202938395,16.4255,91.42,91.367,0.95946739]
[1645202938794,2.6293831,91.419,91.367,0.95946739]
[1645202939396,112.0293831,91.419,91.33,16.4282]
[1645202939794,2.6293831,91.418,91.33,16.4282]
[1645202940396,16.4293,91.41,91.33,16.4282]
[1645202940595,52.38148492,91.409,91.33,16.4282]
[1645202940798,109.4,91.408,91.33,16.4282]
[1645202941096,112.0293831,91.408,91.33,16.4282]
[1645202941296,109.4,91.408,91.33,16.4282]
[1645202941597,2.6293831,91.407,91.33,16.4282]
[1645202941795,16.4296,91.4,91.331,38.04077875]
[1645202942000,52.38148492,91.409,91.34,109.4]
[1645202942199,52.38148492,91.409,91.332,2.6293831]
[1645202942398,52.38148492,91.409,91.333,0.25]
[1645202942997,52.38148492,91.409,91.32,54.7558]
[1645202943196,2.6293831,91.408,91.293,19.03999973]
[1645202943397,112.0293831,91.408,91.305,0.25]
[1645202943696,2.6293831,91.408,91.305,0.25]
[1645202943896,2.8793831,91.407,91.305,49.96136027]
[1645202944296,2.8793831,91.407,91.331,1.96761116]
[1645202944297,16.4286,91.4,91.331,1.96761116]
[1645202944501,2.6293831,91.406,91.331,1.96761116]
[1645202944997,2.6293831,91.406,91.305,0.25]
[1645202945200,52.38148492,91.409,91.305,6.25]
[1645202945398,109.4,91.399,91.33,16.43]
[1645202945599,109.4,91.399,91.304,48.4859]
[1645202945800,2.6293831,91.398,91.304,48.4859]
[1645202947002,2.6293831,91.398,91.305,48.65385085]
[1645202947401,2.6293831,91.398,91.31,16.4332]
[1645202948201,0.25,91.397,91.31,16.4332]
[1645202948401,0.25,91.397,91.311,49.9813981]
[1645202948601,2.6293831,91.396,91.32,16.4316]
[1645202948802,53.02042373,91.395,91.304,48.4859]
[1645202949001,53.02042373,91.395,91.305,0.25]
[1645202949201,53.02042373,91.395,91.304,48.4859]
[1645202949604,112.0293831,91.394,91.304,48.4859]
[1645202949901,2.6293831,91.393,91.333,0.97153956]
[1645202951802,0.25,91.392,91.333,0.97153956]
[1645202952203,2.8793831,91.392,91.333,0.97153956]
[1645202953902,0.25,91.392,91.333,0.97153956]
[1645202954101,23.91,91.394,91.333,0.97153956]
[1645202954301,0.25,91.393,91.333,0.97153956]
[1645202954702,0.25,91.393,91.305,0.25]
[1645202954904,2.6293831,91.392,91.31,16.4317]
[1645202955104,2.6293831,91.392,91.311,0.25]
[1645202955702,2.6293831,91.392,91.31,16.4317]
[1645202956703,5.38,91.383,91.304,0.97123127]
[1645202957203,109.4,91.369,91.304,0.97123127]
[1645202957606,109.4,91.367,91.304,0.97123127]
[1645202957806,5.38,91.363,91.304,0.97123127]
[1645202958007,109.4,91.359,91.304,0.97123127]
[1645202958406,5.38,91.353,91.304,0.97123127]
[1645202958606,5.38,91.342,91.223,23.1314]
[1645202958806,5.38,91.322,91.223,23.1314]
[1645202959205,109.4,91.32,91.201,24.5234]
[1645202959406,109.4,91.309,91.201,24.5234]
[1645202960010,2.6293831,91.308,91.202,6.0]
[1645202960208,109.4,91.306,91.202,6.0]
[1645202960408,109.4,91.306,91.201,24.5234]
[1645202960608,2.6293831,91.305,91.191,22.7137]
[1645202960807,109.4,91.303,91.192,0.25]
[1645202961009,109.4,91.299,91.192,0.25]
[1645202961409,2.6293831,91.298,91.192,0.25]
[1645202961909,2.6293831,91.298,91.192,6.25]
[1645202962512,0.25,91.297,91.192,6.25]
[1645202962908,112.0293831,91.296,91.192,0.25]
[1645202963108,147.34458901,91.296,91.192,0.25]
[1645202963308,2.6293831,91.295,91.191,22.7137]
[1645202963508,109.4,91.294,91.191,22.7137]
[1645202963708,127.6686947,91.294,91.191,22.7137]
[1645202963910,109.4,91.292,91.191,22.7137]
[1645202964309,109.4,91.29,91.191,22.7137]
[1645202964509,20.8980778,91.291,91.191,22.7137]
[1645202964711,20.8980778,91.289,91.191,22.7137]
[1645202964910,20.8980778,91.289,91.193,109.4]
[1645202965112,39.76292421,91.293,91.193,109.4]
[1645202965311,39.76292421,91.293,91.195,109.4]
[1645202965710,39.76292421,91.293,91.192,45.1580457]
[1645202965711,39.76292421,91.293,91.196,5.479]
[1645202965911,39.76292421,91.293,91.192,45.1580457]
[1645202966114,2.6293831,91.292,91.2,16.4517]
[1645202966512,0.25,91.291,91.2,16.4517]
[1645202966914,2.6293831,91.291,91.2,16.4517]
[1645202967115,2.6293831,91.291,91.201,0.25]
[1645202967314,39.76292421,91.293,91.201,0.25]
[1645202967718,2.6293831,91.292,91.201,0.25]
[1645202967915,2.6293831,91.292,91.21,16.4514]
[1645202968115,2.6293831,91.292,91.211,7.742157]
[1645202968316,3.07533468,91.384,91.211,7.742157]
[1645202968317,2.6293831,91.302,91.212,109.4]
[1645202968516,0.38,91.363,91.212,109.65]
[1645202968715,109.4,91.341,91.214,109.4]
[1645202968916,2.6293831,91.332,91.216,109.4]
[1645202969315,51.60081794,91.331,91.216,109.4]
[1645202969515,69.86951264,91.331,91.216,109.4]